fUST/lending_fUST_20250513
["ID","MTS","AMOUNT","RATE_DAILY","PERIOD"]
[360918082,1747145435530,-816.84,0.00013698,2]
[360918083,1747145435540,-400.0,0.00013698,2]
[360918084,1747145435553,-400.0,0.00013698,2]
[360918085,1747145435562,-400.0,0.00013698,2]
[360918086,1747145435572,-400.0,0.00013698,2]
[360918087,1747145435581,-180.98736879,0.00013698,2]
[360918088,1747145435593,-400.0,0.00013698,2]
[360918089,1747145435602,-587.68,0.00013698,2]
[360918090,1747145435612,-400.0,0.00013698,2]
[360918091,1747145435622,-4621.8,0.00013698,2]
[360918092,1747145435632,-400.0,0.00013698,2]
[360918093,1747145435642,-400.0,0.00013698,2]
[360918094,1747145435651,-400.0,0.00013698,2]
[360918095,1747145435662,-492.2,0.00013698,2]
[360918096,1747145435672,-556.17,0.00013698,2]
[360918097,1747145435681,-400.0,0.00013698,2]
[360918098,1747145435690,-574.88,0.00013698,2]
[360918099,1747145435700,-400.0,0.00013698,2]
[360918100,1747145435945,-590.69,0.00013698,2]
[360918101,1747145435955,-1677.37,0.00013698,2]
[360918102,1747145435966,-887.38,0.00013698,2]
[360918103,1747145435976,-428.61,0.00013698,2]
[360918104,1747145435985,-1160.74,0.00013698,2]
[360918105,1747145435995,-412.38,0.00013698,2]
[360918106,1747145436004,-400.0,0.00013698,2]
[360918107,1747145436013,-400.0,0.00013698,2]
[360918108,1747145436023,-2675.95,0.00013698,2]
[360918109,1747145436032,-660.21,0.00013698,2]
[360918110,1747145436042,-400.0,0.00013698,2]
[360918111,1747145436051,-462.76,0.00013698,2]
[360918112,1747145436061,-400.0,0.00013698,2]
[360918113,1747145436070,-151.0,0.00013698,2]
[360918114,1747145436080,-151.0,0.00013698,2]
[360918115,1747145436089,-400.0,0.00013698,2]
[360918116,1747145436098,-400.0,0.00013698,2]
[360918117,1747145436107,-400.0,0.00013698,2]
[360918118,1747145436117,-400.0,0.00013698,2]
[360918119,1747145436126,-400.0,0.00013698,2]
[360918120,1747145436136,-604.21,0.00013698,2]
[360918121,1747145436145,-629.11,0.00013698,2]
[360918122,1747145436155,-1308.59,0.00013698,2]
[360918123,1747145436165,-400.0,0.00013698,2]
[360918124,1747145436175,-637.77,0.00013698,2]
[360918125,1747145436185,-1079.27,0.00013698,2]
[360918126,1747145436194,-1160.15,0.00013698,2]
[360918127,1747145436204,-525.67837462,0.00013698,2]
[360918128,1747145436216,-400.0,0.00013698,2]
[360918129,1747145436226,-2033.92,0.00013698,2]
[360918130,1747145436235,-671.9,0.00013698,2]
[360918131,1747145436244,-497.97,0.00013698,2]
[360918132,1747145436254,-1234.08,0.00013698,2]
[360918133,1747145436263,-400.0,0.00013698,2]
[360918134,1747145436273,-1981.82,0.00013698,2]
[360918135,1747145436283,-400.0,0.00013698,2]
[360918136,1747145436292,-1059.74,0.00013698,2]
[360918137,1747145436302,-400.0,0.00013698,2]
[360918138,1747145436311,-400.0,0.00013698,2]
[360918139,1747145436321,-429.52,0.00013698,2]
[360918140,1747145436331,-2873.96,0.00013698,2]
[360918141,1747145436341,-1431.16,0.00013698,2]
[360918142,1747145436350,-400.0,0.00013698,2]
[360918143,1747145436360,-23902.37,0.00013698,2]
[360918144,1747145436370,-787.18,0.00013698,2]
[360918145,1747145436380,-400.0,0.00013698,2]
[360918146,1747145436389,-400.0,0.00013698,2]
[360918147,1747145436399,-400.0,0.00013698,2]
[360918148,1747145436409,-2674.54,0.00013698,2]
[360918149,1747145436419,-421.98,0.00013698,2]
[360918150,1747145436429,-617.74,0.00013698,2]
[360918151,1747145436440,-275.16046782,0.00013698,2]
[360918152,1747145436450,-400.0,0.00013698,2]
[360918153,1747145436460,-6644.42,0.00013698,2]
[360918154,1747145436470,-700.13,0.00013698,2]
[360918155,1747145436480,-3830.21,0.00013698,2]
[360918156,1747145436489,-400.0,0.00013698,2]
[360918157,1747145436499,-400.0,0.00013698,2]
[360918158,1747145436509,-656.22,0.00013698,2]
[360918159,1747145436519,-461.33,0.00013698,2]
[360918160,1747145436530,-373.26,0.00013698,2]
[360918161,1747145436539,-420.28,0.00013698,2]
[360918162,1747145436549,-3209.12,0.00013698,2]
[360918163,1747145436563,-509.35,0.00013698,2]
[360918164,1747145436573,-932.71,0.00013698,2]
[360918165,1747145436583,-400.0,0.00013698,2]
[360918166,1747145436592,-15507.21,0.00013698,2]
[360918167,1747145436603,-404.7,0.00013698,2]
[360918168,1747145436613,-1554.03,0.00013698,2]
[360918169,1747145436624,-514.620202,0.00013698,2]
[360918170,1747145436634,-400.0,0.00013698,2]
[360918171,1747145436643,-400.0,0.00013698,2]
[360918172,1747145436653,-2103.41,0.00013698,2]
[360918173,1747145436663,-1324.34,0.00013698,2]
[360918174,1747145436673,-400.0,0.00013698,2]
[360918175,1747145436682,-3006.5,0.00013698,2]
[360918176,1747145436692,-514.620202,0.00013698,2]
[360918177,1747145436702,-196.86169645,0.00013698,2]
[360918178,1747145436714,-4707.41,0.00013698,2]
[360918179,1747145436724,-400.0,0.00013698,2]
[360918180,1747145436734,-576.56,0.00013698,2]
[360918181,1747145436744,-1594.65,0.00013698,2]
[360918182,1747145436754,-400.0,0.00013698,2]
[360918183,1747145436765,-691.43,0.00013698,2]
[360918184,1747145436775,-514.94,0.00013698,2]
[360918185,1747145436785,-400.0,0.00013698,2]
[360918186,1747145436795,-400.0,0.00013698,2]
[360918187,1747145436805,-467.88,0.00013698,2]
[360918188,1747145436814,-588.38,0.00013698,2]
[360918189,1747145436824,-400.0,0.00013698,2]
[360918190,1747145436833,-3178.05,0.00013698,2]
[360918191,1747145436843,-400.0,0.00013698,2]
[360918192,1747145436853,-151.0,0.00013698,2]
[360918193,1747145436862,-400.0,0.00013698,2]
[360918194,1747145436871,-151.0,0.00013698,2]
[360918195,1747145436880,-624.69,0.00013698,2]
[360918196,1747145436890,-400.0,0.00013698,2]
[360918197,1747145436900,-727.35,0.00013698,2]
[360918198,1747145436909,-400.0,0.00013698,2]
[360918199,1747145436918,-400.0,0.00013698,2]
[360918200,1747145436928,-400.0,0.00013698,2]
[360918201,1747145436937,-929.59,0.00013698,2]
[360918202,1747145436947,-644.36,0.00013698,2]
[360918203,1747145436956,-480.57,0.00013698,2]
[360918204,1747145436967,-1479.49,0.00013698,2]
[360918205,1747145436977,-3273.39,0.00013698,2]
[360918206,1747145436986,-1229.79,0.00013698,2]
[360918207,1747145436996,-498.13,0.00013698,2]
[360918208,1747145437005,-439.64,0.00013698,2]
[360918209,1747145437015,-15363.31,0.00013698,2]
[360918210,1747145437025,-400.0,0.00013698,2]
[360918211,1747145437034,-500.0,0.00013698,2]
[360918212,1747145437044,-427.05,0.00013698,2]
[360918213,1747145437053,-400.0,0.00013698,2]
[360918214,1747145437063,-400.0,0.00013698,2]
[360918215,1747145437073,-3374.11,0.00013698,2]
[360918216,1747145437082,-1127.59,0.00013698,2]
[360918217,1747145437092,-400.0,0.00013698,2]
[360918218,1747145437102,-400.0,0.00013698,2]
[360918219,1747145437112,-816.18,0.00013698,2]
[360918220,1747145437122,-405.63475258,0.00013698,2]
[360918221,1747145437132,-1204.67,0.00013698,2]
[360918222,1747145437142,-400.0,0.00013698,2]
[360918223,1747145437151,-1511.87,0.00013698,2]
[360918224,1747145437161,-710.69,0.00013698,2]
[360918225,1747145437172,-400.0,0.00013698,2]
[360918226,1747145437182,-1070.75,0.00013698,2]
[360918227,1747145437191,-1374.61,0.00013698,2]
[360918228,1747145437201,-400.0,0.00013698,2]
[360918229,1747145437212,-400.0,0.00013698,2]
[360918230,1747145437222,-3018.44,0.00013698,2]
[360918231,1747145437233,-4863.41,0.00013698,2]
[360918232,1747145437243,-400.0,0.00013698,2]
[360918233,1747145437253,-465.27,0.00013698,2]
[360918234,1747145437262,-468.85,0.00013698,2]
[360918235,1747145437272,-959.12,0.00013698,2]
[360918236,1747145437281,-400.0,0.00013698,2]
[360918237,1747145437291,-3701.53,0.00013698,2]
[360918238,1747145437301,-1032.4,0.00013698,2]
[360918239,1747145437310,-400.0,0.00013698,2]
[360918240,1747145437320,-400.0,0.00013698,2]
[360918241,1747145437329,-151.0,0.00013698,2]
[360918242,1747145437339,-151.0,0.00013698,2]
[360918243,1747145437349,-400.0,0.00013698,2]
[360918244,1747145437358,-540.41,0.00013698,2]
[360918245,1747145437368,-400.0,0.00013698,2]
[360918246,1747145437377,-1656.02,0.00013698,2]
[360918247,1747145437387,-517.22,0.00013698,2]
[360918248,1747145437397,-764.59,0.00013698,2]
[360918249,1747145437407,-400.0,0.00013698,2]
[360918250,1747145437417,-1687.11,0.00013698,2]
[360918251,1747145437427,-400.0,0.00013698,2]
[360918252,1747145437436,-400.0,0.00013698,2]
[360918253,1747145437446,-400.0,0.00013698,2]
[360918254,1747145437456,-468.33,0.00013698,2]
[360918255,1747145437468,-2387.99,0.00013698,2]
[360918257,1747145437478,-400.62453092,0.00013698,2]
[360918259,1747145437488,-400.0,0.00013698,2]
[360918262,1747145437498,-3971.15,0.00013698,2]
[360918264,1747145437508,-939.68,0.00013698,2]
[360918266,1747145437517,-400.0,0.00013698,2]
[360918268,1747145437527,-400.0,0.00013698,2]
[360918270,1747145437537,-871.12,0.00013698,2]
[360918272,1747145437548,-400.0,0.00013698,2]
[360918274,1747145437560,-1897.19,0.00013698,2]
[360918276,1747145437571,-5662.95,0.00013698,2]
[360918278,1747145437581,-539.88,0.00013698,2]
[360918280,1747145437593,-400.0,0.00013698,2]
[360918282,1747145437603,-400.0,0.00013698,2]
[360918284,1747145437613,-2429.02,0.00013698,2]
[360918286,1747145437623,-550.54,0.00013698,2]
[360918288,1747145437634,-400.0,0.00013698,2]
[360918290,1747145437643,-277.62882992,0.00013698,2]
[360918292,1747145437653,-400.0,0.00013698,2]
[360918294,1747145437662,-400.0,0.00013698,2]
[360918296,1747145437672,-400.0,0.00013698,2]
[360918299,1747145437682,-477.09,0.00013698,2]
[360918301,1747145437692,-698.55,0.00013698,2]
[360918303,1747145437702,-400.0,0.00013698,2]
[360918305,1747145437718,-546.06225049,0.00013698,2]
[360918307,1747145437728,-2955.7,0.00013698,2]
[360918309,1747145437737,-2348.98,0.00013698,2]
[360918311,1747145437747,-952.31,0.00013698,2]
[360918313,1747145437757,-400.33,0.00013698,2]
[360918315,1747145437767,-400.0,0.00013698,2]
[360918317,1747145437778,-2074.88,0.00013698,2]
[360918319,1747145437787,-400.0,0.00013698,2]
[360918320,1747145437797,-400.0,0.00013698,2]
[360918322,1747145437807,-12243.01,0.00013698,2]
[360918324,1747145437816,-1866.35,0.00013698,2]
[360918326,1747145437825,-400.0,0.00013698,2]
[360918328,1747145437834,-400.0,0.00013698,2]
[360918330,1747145437844,-435.38,0.00013698,2]
[360918332,1747145437853,-3385.14,0.00013698,2]
[360918334,1747145437862,-1585.33,0.00013698,2]
[360918337,1747145437872,-583.55,0.00013698,2]
[360918339,1747145437882,-400.0,0.00013698,2]
[360918341,1747145437892,-400.0,0.00013698,2]
[360918342,1747145437902,-543.29,0.00013698,2]
[360918343,1747145437911,-4233.29,0.00013698,2]
[360918344,1747145437921,-400.0,0.00013698,2]
[360918345,1747145437933,-468.36,0.00013698,2]
[360918346,1747145437941,-2477.42,0.00013698,2]
[360918347,1747145437949,-400.0,0.00013698,2]
[360918349,1747145437958,-400.0,0.00013698,2]
[360918351,1747145437968,-400.0,0.00013698,2]
[360918352,1747145437975,-400.0,0.00013698,2]
[360918353,1747145437984,-2535.62,0.00013698,2]
[360918354,1747145437992,-400.0,0.00013698,2]
[360918355,1747145438001,-3245.29,0.00013698,2]
[360918356,1747145438011,-628.21,0.00013698,2]
[360918357,1747145438021,-400.0,0.00013698,2]
[360918358,1747145438030,-5741.39,0.00013698,2]
[360918359,1747145438036,-430.59,0.00013698,2]
[360918360,1747145438045,-400.0,0.00013698,2]
[360918361,1747145438054,-400.0,0.00013698,2]
[360918362,1747145438063,-400.0,0.00013698,2]
[360918363,1747145438073,-1699.47,0.00013698,2]
[360918364,1747145438083,-400.0,0.00013698,2]
[360918365,1747145438095,-451.43036188,0.00013698,2]
[360918366,1747145438104,-455.7,0.00013698,2]
[360918367,1747145438114,-632.29,0.00013698,2]
[360918368,1747145438124,-2407.16,0.00013698,2]
[360918369,1747145438134,-454.45,0.00013698,2]
[360918371,1747145438145,-400.0,0.00013698,2]
[360918372,1747145438157,-1956.3,0.00013698,2]
[360918373,1747145438167,-608.61,0.00013698,2]
[360918374,1747145438178,-417.12,0.00013698,2]
[360918375,1747145438188,-400.0,0.00013698,2]
[360918376,1747145438198,-400.0,0.00013698,2]
[360918377,1747145438207,-860.43,0.00013698,2]
[360918378,1747145438220,-1800.2,0.00013698,2]
[360918379,1747145438230,-400.0,0.00013698,2]
[360918380,1747145438240,-8563.34,0.00013698,2]
[360918381,1747145438249,-400.0,0.00013698,2]
[360918382,1747145438259,-481.33,0.00013698,2]
[360918383,1747145438269,-400.0,0.00013698,2]
[360918384,1747145438278,-400.0,0.00013698,2]
[360918385,1747145438287,-564.14,0.00013698,2]
[360918386,1747145438297,-400.0,0.00013698,2]
[360918387,1747145438306,-400.0,0.00013698,2]
[360918388,1747145438316,-1507.43,0.00013698,2]
[360918389,1747145438325,-809.49,0.00013698,2]
[360918390,1747145438409,-400.0,0.00013698,2]
[360918391,1747145438419,-400.0,0.00013698,2]
[360918392,1747145438429,-510.89,0.00013698,2]
[360918393,1747145438439,-400.0,0.00013698,2]
[360918394,1747145438449,-3214.51,0.00013698,2]
[360918395,1747145438459,-400.0,0.00013698,2]
[360918396,1747145438472,-2247.32,0.00013698,2]
[360918397,1747145438481,-630.22,0.00013698,2]
[360918398,1747145438490,-1493.67,0.00013698,2]
[360918399,1747145438499,-1164.19,0.00013698,2]
[360918400,1747145438508,-1169.31,0.00013698,2]
[360918401,1747145438517,-508.17513862,0.00013698,2]
[360918402,1747145438527,-5413.82,0.00013698,2]
[360918403,1747145438536,-2195.53,0.00013698,2]
[360918404,1747145438546,-400.0,0.00013698,2]
[360918405,1747145438557,-400.0,0.00013698,2]
[360918406,1747145438567,-619.47,0.00013698,2]
[360918407,1747145438576,-447.95,0.00013698,2]
[360918408,1747145438586,-400.0,0.00013698,2]
[360918409,1747145438595,-547.41,0.00013698,2]
[360918410,1747145438604,-151.0,0.00013698,2]
[360918411,1747145438613,-151.0,0.00013698,2]
[360918412,1747145438622,-400.0,0.00013698,2]
[360918413,1747145438631,-400.0,0.00013698,2]
[360918414,1747145438642,-463.11,0.00013698,2]
[360918415,1747145438651,-400.0,0.00013698,2]
[360918416,1747145438660,-400.0,0.00013698,2]
[360918417,1747145438669,-400.0,0.00013698,2]
[360918418,1747145438678,-4280.97,0.00013698,2]
[360918419,1747145438687,-400.0,0.00013698,2]
[360918420,1747145438697,-55.95812549,0.00013698,2]
[360918421,1747145438720,-348.02187451,0.00013698,2]
[360918422,1747145438730,-1018.32,0.00013698,2]
[360918423,1747145438739,-400.0,0.00013698,2]
[360918424,1747145438749,-400.0,0.00013698,2]
[360918425,1747145438758,-400.0,0.00013698,2]
[360918426,1747145438767,-400.0,0.00013698,2]
[360918427,1747145438777,-400.0,0.00013698,2]
[360918428,1747145438786,-509.36,0.00013698,2]
[360918429,1747145438795,-400.0,0.00013698,2]
[360918430,1747145438804,-400.0,0.00013698,2]
[360918431,1747145438814,-1292.93,0.00013698,2]
[360918432,1747145438823,-400.0,0.00013698,2]
[360918433,1747145438832,-400.0,0.00013698,2]
[360918434,1747145438841,-1123.67,0.00013698,2]
[360918435,1747145438850,-433.68,0.00013698,2]
[360918436,1747145438859,-400.0,0.00013698,2]
[360918437,1747145438868,-400.0,0.00013698,2]
[360918438,1747145438877,-552.72,0.00013698,2]
[360918439,1747145438886,-2318.23,0.00013698,2]
[360918440,1747145438895,-400.0,0.00013698,2]
[360918441,1747145438904,-1010.86,0.00013698,2]
[360918442,1747145438914,-10770.16,0.00013698,2]
[360918443,1747145438923,-847.3243449,0.00013698,2]
[360918444,1747145439037,-157.0856551,0.00013698,2]
[360918445,1747145439047,-439.12,0.00013698,2]
[360918446,1747145439057,-409.87,0.00013698,2]
[360918447,1747145439066,-749.48,0.00013698,2]
[360918448,1747145439076,-1197.92,0.00013698,2]
[360918449,1747145439085,-400.0,0.00013698,2]
[360918450,1747145439095,-400.0,0.00013698,2]
[360918451,1747145439105,-2930.48,0.00013698,2]
[360918452,1747145439114,-400.0,0.00013698,2]
[360918453,1747145439123,-400.0,0.00013698,2]
[360918454,1747145439133,-400.0,0.00013698,2]
[360918455,1747145439143,-400.0,0.00013698,2]
[360918456,1747145439153,-429.45,0.00013698,2]
[360918457,1747145439163,-400.0,0.00013698,2]
[360918458,1747145439172,-400.0,0.00013698,2]
[360918459,1747145439182,-500.0,0.00013698,2]
[360918460,1747145439193,-151.0,0.00013699,2]
[360918461,1747145439202,-151.0,0.00013699,2]
[360918462,1747145439212,-151.0,0.00013699,2]
[360918463,1747145439223,-531.402589,0.00013699,2]
[360918464,1747145439233,-492.54521,0.00013699,2]
[360918465,1747145439242,-151.0,0.00013699,2]
[360918466,1747145439251,-151.0,0.00013699,2]
[360918467,1747145439261,-151.0,0.00013699,2]
[360918468,1747145439271,-151.0,0.00013699,2]
[360918469,1747145439281,-10637.83298058,0.000139,2]
[360918541,1747145440647,-5000.0,0.00013561,2]
[360918543,1747145440657,-1019.33,0.00013698,2]
[360918545,1747145440666,-400.0,0.00013698,2]
[360918547,1747145440676,-6435.68,0.00013698,2]
[360918549,1747145440685,-2400.96716034,0.000139,2]
[360918551,1747145440695,-306.968453,0.000139,2]
[360918553,1747145440706,-300.0,0.00013925,2]
[360918556,1747145440717,-420.0,0.00013925,2]
[360918558,1747145440727,-210.0,0.00013962,2]
[360918560,1747145440737,-155.0,0.00013964,2]
[360918562,1747145440746,-652.61296533,0.0001397,2]
[360918564,1747145440756,-24039.44142133,0.00013972,2]
[360918799,1747145443118,-197.11419458,0.00013497,2]
[360918801,1747145443128,-434.5,0.00013698,2]
[360918803,1747145443138,-6367.57,0.00013698,2]
[360918805,1747145443148,-874.51,0.00013698,2]
[360918807,1747145443158,-822.32663539,0.00013698,2]
[360919086,1747145446033,-211.97336461,0.00013698,2]
[360919088,1747145446043,-400.0,0.00013698,2]
[360919090,1747145446053,-758.05,0.00013698,2]
[360919092,1747145446063,-400.0,0.00013698,2]
[360919094,1747145446072,-552.54,0.00013698,2]
[360919097,1747145446087,-7683.63680146,0.00013972,2]
[360919107,1747145446174,-644.11250511,0.00013972,2]
[360919115,1747145446247,-51944.66729664,0.00013972,2]
[360919423,1747145503311,3244.99115482,0.0002,120]
[360919424,1747145859934,5000.0,0.00017,120]
[360919427,1747146173127,5723.0,0.00017,120]
[360919434,1747146399292,150.0,8.02e-05,2]
[360919436,1747146428124,-1988.81213131,0.00012665,2]
[360919437,1747146429089,-254.36804391,0.00012665,2]
[360919438,1747146437095,-2756.81982478,0.00012665,2]
[360919439,1747146437119,-176.735029,0.00012793,2]
[360919440,1747146437149,-401.11084692,0.00013598,2]
[360919441,1747146437172,-197.11627166,0.00013598,2]
[360919442,1747146437193,-401.1108469,0.00013649,2]
[360919443,1747146437218,-300.0,0.00013671,2]
[360919444,1747146437242,-500.0,0.00013672,2]
[360919445,1747146437266,-500.0,0.00013672,2]
[360919446,1747146437289,-533.69415373,0.00013672,2]
[360919447,1747146437311,-300.0,0.00013672,2]
[360919448,1747146437334,-500.0,0.00013673,2]
[360919449,1747146437356,-500.0,0.00013673,2]
[360919450,1747146437377,-500.0,0.00013673,2]
[360919451,1747146437398,-356.02464566,0.00013673,2]
[360919454,1747146452197,-5000.0,0.00013536,2]
[360919455,1747146452223,-143.97535434,0.00013673,2]
[360919456,1747146452247,-149.76719821,0.00013673,2]
[360919520,1747146636731,-546.50562813,0.00012565,2]
[360919521,1747146636755,-403.0556179,0.00012565,2]
[360919522,1747146636765,-5000.0,0.00012584,2]
[360919523,1747146636775,-403.9870581,0.00012678,2]
[360919524,1747146636784,-350.90513,0.00012711,2]
[360919525,1747146636794,-1203.3325407,0.00013598,2]
[360919526,1747146636809,-172.47673772,0.00013598,2]
[360919527,1747146636823,-300.0,0.0001367,2]
[360919528,1747146636834,-300.0,0.00013671,2]
[360919529,1747146636844,-300.0,0.00013671,2]
[360919531,1747146636854,-300.0,0.00013671,2]
[360919532,1747146636864,-500.0,0.00013673,2]
[360919533,1747146636874,-461.44414613,0.00013673,2]
[360919534,1747146636884,-500.0,0.00013673,2]
[360919535,1747146636894,-500.0,0.00013673,2]
[360919536,1747146636905,-500.0,0.00013673,2]
[360919537,1747146636915,-500.0,0.00013673,2]
[360919538,1747146636924,-330.24577747,0.00013673,2]
[360919539,1747146636934,-500.0,0.00013673,2]
[360919540,1747146636945,-500.0,0.00013673,2]
[360919541,1747146636955,-500.0,0.00013673,2]
[360919542,1747146636964,-500.0,0.00013673,2]
[360919543,1747146636975,-500.0,0.00013673,2]
[360919544,1747146636984,-497.89163842,0.00013673,2]
[360919545,1747146637001,-500.0,0.00013673,2]
[360919546,1747146637011,-500.0,0.00013673,2]
[360919547,1747146637021,-500.0,0.00013673,2]
[360919548,1747146637030,-2147.78752404,0.00013673,2]
[360919549,1747146637039,-500.0,0.00013697,2]
[360919550,1747146637049,-500.0,0.00013697,2]
[360919551,1747146637059,-208.72991137,0.00013697,2]
[360919552,1747146637068,-235.60548413,0.00013697,2]
[360919553,1747146637077,-160.0,0.00013697,2]
[360919554,1747146637086,-262.39795607,0.00013697,2]
[360919555,1747146637096,-400.0,0.00013698,2]
[360919556,1747146637106,-400.0,0.00013698,2]
[360919557,1747146637115,-400.0,0.00013698,2]
[360919558,1747146637124,-348.58240803,0.00013698,2]
[360919559,1747146637134,-151.0,0.00013698,2]
[360919560,1747146637144,-151.0,0.00013698,2]
[360919561,1747146637153,-400.0,0.00013698,2]
[360919562,1747146637163,-392.22211638,0.00013698,2]
[360919563,1747146637173,-400.0,0.00013698,2]
[360919564,1747146637184,-400.0,0.00013698,2]
[360919565,1747146637194,-400.0,0.00013698,2]
[360919566,1747146637204,-264.16613762,0.00013698,2]
[360919567,1747146637214,-400.0,0.00013698,2]
[360919568,1747146637226,-400.0,0.00013698,2]
[360919569,1747146637237,-400.0,0.00013698,2]
[360919570,1747146637250,-400.0,0.00013698,2]
[360919571,1747146637260,-722.01,0.00013698,2]
[360919572,1747146637270,-400.0,0.00013698,2]
[360919573,1747146637280,-445.07,0.00013698,2]
[360919574,1747146637290,-400.0,0.00013698,2]
[360919575,1747146637299,-539.52,0.00013698,2]
[360919576,1747146637309,-657.81,0.00013698,2]
[360919577,1747146637318,-676.72,0.00013698,2]
[360919578,1747146637328,-400.0,0.00013698,2]
[360919579,1747146637337,-526.41,0.00013698,2]
[360919580,1747146637347,-400.0,0.00013698,2]
[360919581,1747146637357,-400.0,0.00013698,2]
[360919582,1747146637366,-505.92,0.00013698,2]
[360919583,1747146637376,-407.63884363,0.00013698,2]
[360919584,1747146637386,-400.0,0.00013698,2]
[360919585,1747146637396,-400.0,0.00013698,2]
[360919586,1747146637405,-400.0,0.00013698,2]
[360919587,1747146637415,-400.0,0.00013698,2]
[360919589,1747146637429,-411.16,0.00013698,2]
[360919590,1747146637438,-1200.05,0.00013698,2]
[360919592,1747146637448,-400.0,0.00013698,2]
[360919594,1747146637458,-417.45,0.00013698,2]
[360919595,1747146637467,-400.0,0.00013698,2]
[360919596,1747146637477,-2050.93,0.00013698,2]
[360919597,1747146637489,-400.0,0.00013698,2]
[360919598,1747146637499,-543.73,0.00013698,2]
[360919599,1747146637509,-363.05453706,0.00013698,2]
[360919600,1747146637519,-400.0,0.00013698,2]
[360919601,1747146637529,-400.0,0.00013698,2]
[360919602,1747146637539,-400.0,0.00013698,2]
[360919603,1747146637551,-400.0,0.00013698,2]
[360919604,1747146637561,-400.0,0.00013698,2]
[360919605,1747146637571,-151.0,0.00013698,2]
[360919606,1747146637580,-400.0,0.00013698,2]
[360919607,1747146637590,-400.0,0.00013698,2]
[360919608,1747146637599,-403.04,0.00013698,2]
[360919609,1747146637608,-400.0,0.00013698,2]
[360919611,1747146637618,-400.0,0.00013698,2]
[360919612,1747146637627,-400.0,0.00013698,2]
[360919613,1747146637637,-590.7,0.00013698,2]
[360919614,1747146637646,-569.76,0.00013698,2]
[360919615,1747146637655,-400.0,0.00013698,2]
[360919616,1747146637665,-400.0,0.00013698,2]
[360919617,1747146637674,-400.0,0.00013698,2]
[360919618,1747146637684,-648.88,0.00013698,2]
[360919620,1747146637693,-400.0,0.00013698,2]
[360919622,1747146637703,-990.14,0.00013698,2]
[360919624,1747146637712,-644.3,0.00013698,2]
[360919626,1747146637722,-583.25,0.00013698,2]
[360919628,1747146637732,-285.10280752,0.00013698,2]
[360919630,1747146637744,-844.46,0.00013698,2]
[360919632,1747146637753,-1088.9,0.00013698,2]
[360919634,1747146637763,-400.0,0.00013698,2]
[360919636,1747146637774,-528.48,0.00013698,2]
[360919638,1747146637787,-466.46,0.00013698,2]
[360919640,1747146637799,-400.0,0.00013698,2]
[360919642,1747146637812,-400.0,0.00013698,2]
[360919644,1747146637826,-2372.84,0.00013698,2]
[360919646,1747146637837,-400.0,0.00013698,2]
[360919648,1747146637847,-400.0,0.00013698,2]
[360919650,1747146637857,-400.0,0.00013698,2]
[360919652,1747146637867,-209.37479878,0.00013698,2]